bitfinex-derivatives/quotes_ETHF0:USTF0_20241005
["timestamp","ask_amount","ask_price","bid_price","bid_amount"]
[1728095094257,0.28952,2417.6,2417.5,0.4202]
[1728095095263,1.49632,2417.7,2417.5,0.4202]
[1728095097271,1.2068,2417.7,2417.5,0.4202]
[1728095097565,0.28952,2417.6,2417.5,0.4202]
[1728095098160,1.32952,2417.6,2417.5,0.4202]
[1728095098562,0.28952,2417.6,2417.5,0.4202]
[1728095098766,1.2068,2417.7,2417.3,0.7818]
[1728095098959,0.28955,2417.5,2417.3,1.169]
[1728095099356,0.68155,2417.4,2417.3,0.3872]
[1728095100364,0.392,2417.4,2417.3,0.3872]
[1728095100571,0.68155,2417.4,2417.3,0.3872]
[1728095102064,0.392,2417.4,2417.0,2.22069638]
[1728095102283,0.2896,2417.0,2416.8,2.41429638]
[1728095102472,0.2896,2417.0,2416.8,1.4266]
[1728095104082,0.4227,2417.1,2416.8,1.4266]
[1728095104382,0.2896,2417.0,2416.8,1.4266]
[1728095107283,0.28961,2416.9,2416.8,0.3866]
[1728095107482,1.08981,2416.9,2416.8,0.3866]
[1728095107990,0.28965,2416.6,2416.4,0.289]
[1728095108185,0.4144,2416.5,2416.3,1.8554]
[1728095108384,0.70406,2416.5,2416.3,1.8554]
[1728095109283,3.2078,2416.8,2416.4,1.04]
[1728095109489,0.28964,2416.7,2416.5,0.3919]
[1728095109791,3.49743,2416.8,2416.6,1.04]
[1728095110183,3.49743,2416.8,2416.7,0.389]
[1728095111188,3.2078,2416.8,2416.7,0.389]
[1728095111783,3.2078,2416.8,2416.7,1.429]
[1728095112092,1.2146,2416.9,2416.7,1.429]
[1728095112594,4.47559,2417.1,2416.8,1.04]
[1728095112796,0.28959,2417.1,2416.9,0.3871]
[1728095113092,2.1137,2417.3,2416.9,0.3871]
[1728095113291,0.28958,2417.2,2416.9,0.3871]
[1728095114386,1.2327,2417.3,2416.9,0.3871]
[1728095114695,0.28958,2417.2,2416.9,0.3871]
[1728095120297,0.28958,2417.2,2417.0,1.04]
[1728095120995,2.1137,2417.3,2417.0,1.04]
[1728095121196,0.28958,2417.2,2417.0,1.04]
[1728095122188,0.28958,2417.2,2416.9,0.3871]
[1728095126995,0.28958,2417.2,2416.9,0.67671]
[1728095127601,0.28958,2417.2,2416.9,0.3871]
[1728095128303,1.2327,2417.3,2417.0,1.04]
[1728095128503,0.28955,2417.4,2417.2,1.04]
[1728095128696,1.57834,2417.5,2417.3,0.4274]
[1728095129396,1.57834,2417.5,2417.4,1.04]
[1728095129397,0.4078,2417.5,2417.4,1.04]
[1728095129603,0.69734,2417.5,2417.4,1.4581]
[1728095129797,0.4078,2417.5,2417.4,1.4581]
[1728095129999,3.49732,2417.7,2417.4,1.74764]
[1728095130204,3.2078,2417.7,2417.5,1.04]
[1728095130400,3.49731,2417.7,2417.6,0.4069]
[1728095130602,3.2078,2417.7,2417.6,0.4069]
[1728095130908,3.49731,2417.7,2417.6,0.4069]
[1728095133798,0.28951,2417.7,2417.6,0.7997]
[1728095135901,0.28951,2417.7,2417.6,0.3928]
[1728095136109,5.176,2417.7,2417.1,1.08181918]
[1728095136298,0.72377,2417.8,2417.1,1.08181918]
[1728095136299,0.28957,2417.3,2417.2,1.4373]
[1728095136704,0.28957,2417.3,2417.2,0.3973]
[1728095150929,0.2896,2417.0,2416.9,2.12181918]
[1728095151118,0.2896,2417.0,2416.9,1.446]
[1728095151823,0.6938,2417.0,2416.9,1.446]
[1728095160520,0.2896,2417.0,2416.9,1.446]
[1728095161318,0.2896,2417.0,2416.9,0.406]
[1728095181735,1.3296,2417.0,2416.9,0.406]
[1728095183135,1.04,2417.0,2416.9,0.406]
[1728095183544,1.3296,2417.0,2416.9,0.406]
[1728095185746,0.28962,2416.8,2416.7,2.12181918]
[1728095186044,0.28962,2416.8,2416.7,2.53501918]
[1728095186939,0.28962,2416.8,2416.7,1.4532]
[1728095187533,8.3854,2416.8,2416.5,1.08181918]
[1728095187836,0.28966,2416.5,2416.4,0.4117]
[1728095188137,0.28966,2416.5,2416.2,0.4106]
[1728095188138,0.28968,2416.3,2416.2,0.4106]
[1728095188342,1.32968,2416.3,2416.2,0.4106]
[1728095191245,0.28967,2416.4,2416.2,0.4106]
[1728095191447,1.04,2416.9,2416.3,1.04]
[1728095191632,0.28962,2416.9,2416.6,1.32964]
[1728095191837,0.28962,2416.9,2416.7,0.8331]
[1728095192038,2.2792,2417.0,2416.8,0.3869]
[1728095192039,2.5688,2417.0,2416.8,0.3869]
[1728095192245,1.1275,2417.0,2416.8,0.3869]
[1728095192651,2.3073,2417.2,2416.9,1.04]
[1728095192652,0.4013,2417.2,2416.9,1.04]
[1728095192944,0.28958,2417.2,2417.0,1.4585]
[1728095193450,0.28957,2417.2,2417.1,0.4146]
[1728095199747,1.32957,2417.2,2417.1,0.4146]
[1728095213264,0.28961,2416.9,2416.8,0.3869]
[1728095213560,0.28963,2416.8,2416.6,0.8038]
[1728095213753,0.28962,2416.8,2416.6,1.52044]
[1728095213958,0.28962,2416.8,2416.6,1.2308]
[1728095215460,0.28962,2416.8,2416.6,2.60225918]
[1728095218269,0.28962,2416.8,2416.6,2.31261918]
[1728095218967,0.28962,2416.8,2416.6,2.60225918]
[1728095219172,0.28962,2416.8,2416.6,3.64225918]
[1728095220174,0.28962,2416.8,2416.6,3.35261918]
[1728095220776,0.28962,2416.8,2416.6,3.64224918]
[1728095224482,6.21419,2417.1,2416.6,3.64224918]
[1728095224671,0.28963,2416.7,2416.6,2.31261918]
[1728095225268,0.28963,2416.7,2416.6,2.60225918]
[1728095226072,0.28963,2416.8,2416.6,2.60225918]
[1728095226279,0.724,2417.0,2416.6,2.31261918]
[1728095226470,0.28963,2416.7,2416.6,2.31261918]
[1728095226973,0.28963,2416.8,2416.6,2.60225918]
[1728095228476,0.28963,2416.8,2416.6,1.52044]
[1728095228676,3.9318,2417.0,2416.6,1.52044]
[1728095228677,0.28962,2416.9,2416.7,0.28963]
[1728095233276,0.28962,2416.9,2416.6,2.60225918]
[1728095233471,0.28962,2416.8,2416.6,2.31261918]
[1728095233675,0.28962,2416.8,2416.6,1.2308]
[1728095235577,0.28962,2416.8,2416.6,2.31261918]
[1728095236279,0.28962,2416.9,2416.6,2.60225918]
[1728095236582,6.21419,2417.1,2416.7,1.08181918]
[1728095236583,0.28962,2416.8,2416.7,1.08181918]
[1728095236783,0.67762,2416.8,2416.7,1.08181918]
[1728095237180,0.388,2416.8,2416.7,1.08181918]
[1728095237386,0.388,2416.8,2416.7,1.60911865]
[1728095237584,0.388,2416.8,2416.7,3.18641273]
[1728095237982,0.67762,2416.8,2416.7,1.60911865]
[1728095238981,0.388,2416.8,2416.7,1.60911865]
[1728095239884,0.388,2416.8,2416.7,1.08181918]
[1728095240291,0.388,2416.8,2416.7,3.18636559]
[1728095240586,0.388,2416.8,2416.7,3.18633643]
[1728095240975,0.388,2416.8,2416.7,1.60910439]
[1728095241979,0.388,2416.8,2416.7,1.60910688]
[1728095242381,0.388,2416.8,2416.7,1.08181918]
[1728095242580,0.388,2416.8,2416.7,1.60911209]
[1728095242787,0.388,2416.8,2416.7,1.60911634]
[1728095243382,0.388,2416.8,2416.7,1.08181918]
[1728095243582,0.388,2416.8,2416.6,2.60225918]
[1728095245692,0.7912,2416.8,2416.6,2.60225918]
[1728095246589,0.7912,2416.8,2416.6,2.31261918]
[1728095246890,0.2896,2417.0,2416.7,1.89875246]
[1728095247094,0.2896,2417.0,2416.7,1.37144918]
[1728095249497,0.2896,2417.0,2416.8,1.08181918]
[1728095249907,0.2896,2417.0,2416.9,0.3968]
[1728095253093,0.2896,2417.0,2416.9,1.47861918]
[1728095255392,0.2896,2417.0,2416.9,2.0061656]
[1728095256095,0.2896,2417.0,2416.9,1.47861918]
[1728095258101,0.2896,2417.0,2416.9,2.00624875]
[1728095258498,0.2896,2417.0,2416.9,0.92442957]
[1728095258798,0.2896,2417.0,2416.9,0.3968]
[1728095262398,0.28963,2416.7,2416.6,5.12691918]
[1728095262698,0.28963,2416.7,2416.6,7.11464825]
[1728095263903,0.28963,2416.7,2416.6,11.25224825]
[1728095264203,0.8046,2416.9,2416.6,11.25224825]
[1728095264405,0.28963,2416.7,2416.6,5.53611918]
[1728095264708,0.28963,2416.7,2416.6,7.11466861]
[1728095264892,0.28963,2416.7,2416.6,11.25226861]
[1728095266002,0.28963,2416.7,2416.6,11.54190861]
[1728095266203,0.28963,2416.7,2416.6,11.25226861]
[1728095266404,0.72401,2417.0,2416.6,12.29226861]
[1728095266604,0.72401,2417.0,2416.8,1.04]
[1728095266605,0.2896,2417.0,2416.8,1.04]
[1728095266801,0.28958,2417.2,2417.0,0.28959]
[1728095267101,0.28958,2417.2,2417.1,1.5031717]
[1728095267302,0.28958,2417.2,2417.1,3.08158488]
[1728095267700,0.28958,2417.2,2417.1,3.08121296]
[1728095268210,0.28958,2417.2,2417.1,1.5031717]
[1728095268595,0.28955,2417.4,2417.1,5.48109388]
[1728095268797,0.28955,2417.4,2417.3,1.08556276]
[1728095269095,0.28955,2417.4,2417.3,2.66329379]
[1728095269303,0.28955,2417.4,2417.3,1.48456276]
[1728095269502,0.28955,2417.4,2417.3,0.399]
[1728095269696,0.28955,2417.4,2417.3,1.48456276]
[1728095270298,0.28955,2417.4,2417.3,0.399]
[1728095271803,0.28954,2417.6,2417.3,3.87735537]
[1728095272001,0.28954,2417.6,2417.4,1.04]
[1728095272198,0.28954,2417.6,2417.5,0.3857]
[1728095273304,0.28952,2417.7,2417.5,1.4257]
[1728095273509,0.28952,2417.7,2417.6,0.4034]
[1728095273908,1.51211,2417.8,2417.6,0.4034]
[1728095274107,0.28949,2417.9,2417.6,0.4034]
[1728095274302,0.28949,2417.9,2417.7,0.3952]
[1728095274502,1.04,2418.0,2417.7,0.3952]
[1728095274716,0.2895,2417.8,2417.7,0.3952]
[1728095275008,1.47917,2418.1,2417.7,1.7247]
[1728095275212,0.28948,2418.0,2417.9,1.04]
[1728095275901,0.28948,2418.0,2417.7,0.3952]
[1728095276102,0.28948,2418.0,2417.8,1.04]
[1728095276414,0.28948,2418.0,2417.9,0.4041]
[1728095280218,1.1897,2418.2,2417.8,1.04]
[1728095280419,0.2895,2417.8,2417.7,1.4352]
[1728095282510,1.04,2418.0,2417.4,3.2078]
[1728095282714,0.28954,2417.5,2417.4,4.6724]
[1728095283020,0.28954,2417.5,2417.4,1.4646]
[1728095283222,0.28954,2417.5,2417.4,0.4246]
[1728095288510,0.28957,2417.2,2417.1,0.289]
[1728095288715,0.28956,2417.3,2417.1,0.28958]
[1728095291122,1.04,2417.5,2417.0,1.4269]
[1728095291422,0.28957,2417.3,2417.1,0.28958]
[1728095293423,0.28955,2417.4,2417.2,0.28957]
[1728095293817,0.4074,2417.3,2417.2,0.28957]
[1728095297716,0.4074,2417.3,2417.0,0.3869]
[1728095297922,0.28958,2417.1,2417.0,0.3869]
[1728095298119,1.4474,2417.3,2416.7,0.3851]
[1728095298120,1.8246,2417.2,2416.7,0.3851]
[1728095298323,1.8246,2417.2,2416.6,0.3878]
[1728095298324,0.28963,2416.7,2416.6,0.3878]
[1728095298528,1.04,2417.0,2416.6,0.67744]
[1728095298725,0.28962,2416.8,2416.6,0.67744]
[1728095299332,1.07422,2416.8,2416.6,0.67744]
[1728095300228,1.07422,2416.8,2416.6,1.71744]
[1728095302030,0.7846,2416.8,2416.6,1.4278]
[1728095302231,0.28963,2416.7,2416.6,1.4278]
[1728095302427,1.07423,2416.8,2416.6,1.4278]
[1728095302621,1.07423,2416.8,2416.6,1.71744]
[1728095303121,0.7846,2416.8,2416.6,1.4278]
[1728095303324,0.28963,2416.7,2416.6,1.4278]
[1728095303726,0.28963,2416.7,2416.6,1.71744]
[1728095304029,1.07422,2416.8,2416.6,1.71744]
[1728095315643,1.07422,2416.8,2416.7,0.28963]
[1728095318442,1.07422,2416.8,2416.6,1.71744]
[1728095319134,4.9222,2416.8,2416.4,4.29336276]
[1728095319342,4.9222,2416.8,2416.5,0.4187]
[1728095319343,0.28965,2416.6,2416.5,0.4187]
[1728095319746,1.8246,2416.8,2416.3,1.87126276]
[1728095319940,0.28968,2416.3,2416.2,0.4187]
[1728095320442,0.4101,2416.5,2416.2,0.70839]
[1728095320443,1.13838,2416.4,2416.2,0.70839]
[1728095321039,0.28968,2416.3,2416.2,0.4187]
[1728095321255,1.13837,2416.4,2416.2,0.70839]
[1728095327242,0.8487,2416.4,2416.3,0.28968]
[1728095329946,0.8487,2416.4,2416.2,0.4187]
[1728095329947,0.8487,2416.4,2416.2,0.70838]
[1728095330149,0.8487,2416.4,2416.3,0.28968]
[1728095332344,1.13837,2416.4,2416.2,1.74839]
[1728095332746,0.8487,2416.4,2416.2,1.74839]
[1728095333145,0.8487,2416.4,2416.3,0.28968]
[1728095334762,0.8487,2416.4,2416.2,1.74838]
[1728095335754,1.13838,2416.4,2416.2,1.4587]
[1728095337053,1.13838,2416.4,2416.2,1.74839]
[1728095340849,1.13838,2416.4,2416.2,0.70839]
[1728095344449,0.8487,2416.4,2416.3,0.28968]
[1728095347656,0.8487,2416.4,2416.2,1.50426276]
[1728095347856,0.8487,2416.4,2416.2,1.79394276]
[1728095349959,1.13837,2416.4,2416.2,1.79394276]
[1728095351249,0.8487,2416.4,2416.2,1.50426276]
[1728095351450,0.8487,2416.4,2416.3,0.28968]
[1728095351647,0.8487,2416.4,2416.3,0.68198]
[1728095352461,0.69976,2416.5,2416.3,0.68198]
[1728095353158,0.69976,2416.5,2416.3,1.76754276]
[1728095353459,0.69976,2416.5,2416.3,0.68198]
[1728095354761,0.69976,2416.5,2416.3,1.76754276]
[1728095355064,0.69976,2416.5,2416.3,0.68198]
[1728095355563,0.69976,2416.5,2416.3,1.76754276]
[1728095358068,0.28966,2416.5,2416.4,0.4179]
[1728095359170,0.28967,2416.4,2416.3,1.47786276]
[1728095359466,0.69657,2416.4,2416.3,1.08556276]
[1728095360662,0.69657,2416.4,2416.3,1.61263744]
[1728095360862,0.69657,2416.4,2416.3,3.18800141]
[1728095362467,0.69657,2416.4,2416.3,3.18779028]
[1728095363075,0.69657,2416.4,2416.3,3.47747028]
[1728095363374,0.69657,2416.4,2416.3,4.02144259]
[1728095364776,0.4069,2416.4,2416.3,4.02144259]
[1728095365372,0.4069,2416.4,2416.3,2.39392974]
[1728095365774,0.69657,2416.4,2416.3,2.39392974]
[1728095366278,0.69657,2416.4,2416.3,2.10424974]
[1728095366676,0.69657,2416.4,2416.3,3.7340948]
[1728095366873,0.69657,2416.4,2416.3,2.10483608]
[1728095367266,0.69657,2416.4,2416.3,3.73468296]
[1728095367570,0.69657,2416.4,2416.3,3.73468482]
[1728095368180,0.69657,2416.4,2416.3,4.02436482]
[1728095369880,0.69657,2416.4,2416.3,3.73468482]
[1728095370474,0.69657,2416.4,2416.3,3.73552329]
[1728095370885,0.69657,2416.4,2416.3,3.20763533]
[1728095371080,0.69657,2416.4,2416.3,3.73551928]
[1728095372676,0.4069,2416.4,2416.3,3.73551928]
[1728095372876,0.4069,2416.4,2416.3,4.02519928]
[1728095374877,0.69657,2416.4,2416.3,4.02519928]
[1728095375377,0.69657,2416.4,2416.3,3.73551928]
[1728095375578,0.69657,2416.4,2416.3,3.73540456]
[1728095377087,0.28967,2416.4,2416.3,3.73540456]
[1728095378281,0.28967,2416.4,2416.3,3.73535631]
[1728095380390,0.28967,2416.4,2416.3,2.15768444]
[1728095380687,0.28967,2416.4,2416.3,3.7353328]
[1728095382684,0.28967,2416.4,2416.3,3.2074971]
[1728095383394,0.28967,2416.4,2416.3,3.73533531]
[1728095383895,0.28967,2416.4,2416.3,3.73533735]
[1728095385588,0.28967,2416.4,2416.3,3.73535093]
[1728095386590,0.28967,2416.4,2416.3,3.20751068]
[1728095386786,0.28967,2416.4,2416.3,3.19201051]
[1728095388083,0.28967,2416.4,2416.3,1.61434857]
[1728095388989,0.28967,2416.4,2416.3,3.19203592]
[1728095389497,0.28967,2416.4,2416.3,1.61434857]
[1728095390298,0.28967,2416.4,2416.3,1.6143689]
[1728095390689,1.04,2416.5,2416.2,1.08650649]
[1728095390889,1.50738,2416.3,2416.2,1.08650649]
[1728095391190,1.50738,2416.3,2416.2,1.61437927]
[1728095393598,1.50738,2416.3,2416.2,1.61425334]
[1728095393799,1.50738,2416.3,2416.2,3.19160299]
[1728095394097,1.50738,2416.3,2416.2,2.66385614]
[1728095394397,1.50738,2416.3,2416.2,3.19156666]
[1728095397396,1.50738,2416.3,2416.2,1.61421701]
[1728095397694,1.50738,2416.3,2416.2,3.19125848]
[1728095397894,1.50738,2416.3,2416.2,1.61421701]
[1728095398592,1.50738,2416.3,2416.2,3.19120755]
[1728095399196,1.50738,2416.3,2416.2,1.61421701]
[1728095400702,1.50738,2416.3,2416.2,1.61411784]
[1728095403307,1.50738,2416.3,2416.2,1.61410273]
[1728095403492,1.50738,2416.3,2416.2,1.08650649]
[1728095403695,0.28969,2416.2,2416.1,1.50850649]
[1728095403897,0.28969,2416.2,2416.1,2.52650687]
[1728095404801,0.28969,2416.2,2416.1,3.6124963]
[1728095406905,0.28969,2416.2,2416.1,3.08490109]
[1728095407205,0.28969,2416.2,2416.1,3.61244645]
[1728095408699,0.28969,2416.2,2416.1,3.61222665]
[1728095409610,0.28969,2416.2,2416.1,3.61219397]
[1728095410294,0.28969,2416.2,2416.1,2.03553479]
[1728095412806,0.28969,2416.2,2416.1,2.03548425]
[1728095414009,0.28969,2416.2,2416.1,2.52608357]
[1728095414207,0.28969,2416.2,2416.1,3.62843749]
[1728095414408,0.28969,2416.2,2416.1,4.15589135]
[1728095414609,0.28969,2416.2,2416.1,4.1558898]
[1728095414808,0.28969,2416.2,2416.1,4.68336846]
[1728095415008,0.28969,2416.2,2416.1,3.05351972]
[1728095415207,0.28969,2416.2,2416.1,4.13929062]
[1728095415505,0.72416,2416.5,2416.1,3.05351972]
[1728095415706,0.28969,2416.3,2416.2,4.00770429]
[1728095417608,0.28969,2416.3,2416.2,3.48022563]
[1728095417910,0.28969,2416.3,2416.2,2.92192345]
[1728095418203,0.28969,2416.3,2416.2,4.00766448]
[1728095419311,0.3999,2416.4,2416.2,4.00766448]
[1728095419512,0.3999,2416.4,2416.2,1.90364103]
[1728095419815,0.68957,2416.4,2416.3,1.08574103]
[1728095420114,0.28968,2416.3,2416.2,1.90364103]
[1728095420305,0.28968,2416.3,2416.2,4.00772951]
[1728095420712,0.3999,2416.4,2416.2,4.00772951]
[1728095420914,0.68957,2416.4,2416.2,1.90364103]
[1728095422206,0.68957,2416.4,2416.3,1.08574103]
[1728095422606,0.68957,2416.4,2416.2,1.90364103]
[1728095422913,0.68957,2416.4,2416.3,1.08574103]
[1728095424016,0.28968,2416.3,2416.2,1.90364103]
[1728095424215,0.3999,2416.4,2416.2,2.4311684]
[1728095424416,0.68958,2416.4,2416.2,1.90364103]
[1728095425417,0.68958,2416.4,2416.2,2.19333103]
[1728095425712,0.3999,2416.4,2416.2,1.90364103]
[1728095425913,0.68957,2416.4,2416.2,2.19333103]
[1728095426120,0.68957,2416.4,2416.2,1.90364103]
[1728095427616,0.28968,2416.3,2416.2,1.90364103]
[1728095428110,0.68958,2416.4,2416.2,2.43124243]
[1728095428310,0.68958,2416.4,2416.2,2.19333103]
[1728095428511,0.68958,2416.4,2416.2,1.90364103]
[1728095430016,0.68958,2416.4,2416.2,2.19333103]
[1728095431222,0.3999,2416.4,2416.3,0.52764149]
[1728095432021,0.3999,2416.4,2416.3,1.61338252]
[1728095432616,0.68957,2416.4,2416.3,1.61338252]
[1728095432827,0.68957,2416.4,2416.3,1.08574103]
[1728095436027,0.68957,2416.4,2416.3,1.61348354]
[1728095437818,0.3999,2416.4,2416.3,1.61348354]
[1728095438529,0.68957,2416.4,2416.3,1.61348354]
[1728095438728,0.68957,2416.4,2416.3,1.08574103]
[1728095438936,0.68957,2416.4,2416.2,1.90364103]
[1728095439633,0.68957,2416.4,2416.2,2.19333103]
[1728095441334,0.3999,2416.4,2416.2,2.19333103]
[1728095441635,0.68958,2416.4,2416.2,1.90364103]
[1728095442026,0.68958,2416.4,2416.2,2.19333103]
[1728095442527,0.3999,2416.4,2416.3,0.28968]
[1728095442730,0.68958,2416.4,2416.2,2.19332103]
[1728095443230,0.28968,2416.3,2416.2,1.90364103]
[1728095443428,0.28969,2416.2,2416.1,1.50774103]
[1728095443826,0.28969,2416.2,2416.1,2.03553475]
[1728095443827,4.42889,2416.2,2416.1,2.03553475]
[1728095444324,4.42889,2416.2,2416.1,1.50774103]
[1728095444937,0.28969,2416.2,2416.1,1.50774103]
[1728095447931,5.36328,2416.3,2416.1,1.79744103]
[1728095449836,2.15548,2416.3,2416.1,1.79744103]
[1728095453931,1.11548,2416.3,2416.1,1.79744103]
[1728095454130,1.11548,2416.3,2416.2,0.7873]
[1728095455333,1.11548,2416.3,2416.2,1.87304103]
[1728095455841,0.28966,2416.5,2416.3,0.28968]
[1728095456037,1.56834,2416.7,2416.4,0.69026]
[1728095456434,1.56834,2416.7,2416.5,0.28965]
[1728095456635,1.56834,2416.7,2416.4,1.48634103]
[1728095456834,1.56834,2416.7,2416.4,1.77600103]
[1728095457029,1.2787,2416.7,2416.4,1.77600103]
[1728095457229,0.28965,2416.6,2416.4,1.48634103]
[1728095457427,0.28965,2416.6,2416.4,0.4006]
[1728095457629,0.28965,2416.6,2416.4,0.69027]
[1728095457839,0.28965,2416.6,2416.4,1.77601103]
[1728095458035,0.28965,2416.6,2416.5,0.8232]
[1728095458440,1.56834,2416.7,2416.5,0.8232]
[1728095458834,0.28964,2416.6,2416.5,0.8232]
[1728095464741,1.8438,2416.8,2416.5,0.8232]
[1728095464942,0.28964,2416.7,2416.5,2.19859103]
[1728095465343,0.28964,2416.7,2416.5,1.90894103]
[1728095465845,1.8438,2416.8,2416.5,1.90894103]
[1728095466044,3.3998,2417.0,2416.6,1.04]
[1728095466251,6.48826362,2417.1,2416.7,1.4623]
[1728095466442,6.48826362,2417.1,2416.8,1.08574103]
[1728095466443,0.2896,2417.0,2416.8,1.08574103]
[1728095466641,0.2896,2417.0,2416.9,0.8029]
[1728095467141,6.06546362,2417.1,2416.9,1.88864103]
[1728095467350,6.06546362,2417.1,2417.0,0.4223]
[1728095467643,6.06546362,2417.1,2417.0,0.7119]
[1728095467847,1.04,2417.3,2417.0,1.75189]
[1728095467848,0.28957,2417.3,2417.0,1.75189]
[1728095468050,0.38556,2417.4,2417.1,1.32958]
[1728095468345,3.2078,2417.5,2417.2,1.04]
[1728095468550,3.2078,2417.5,2417.4,1.04]
[1728095469047,3.2078,2417.5,2417.4,1.4311]
[1728095469845,0.096,2417.7,2417.4,1.4311]
[1728095470051,0.28952,2417.7,2417.4,1.72064]
[1728095470446,0.28951,2417.8,2417.5,1.32953]
[1728095470643,0.28951,2417.8,2417.6,0.28952]
[1728095470847,0.28951,2417.8,2417.7,0.7779]
[1728095472450,1.32951,2417.8,2417.7,0.3873]
[1728095472650,11.46551,2417.8,2417.3,0.289]
[1728095472855,0.28955,2417.4,2417.3,0.289]
[1728095473049,0.28955,2417.4,2417.1,0.41]
[1728095473050,0.28957,2417.2,2417.1,0.41]
[1728095478650,0.28956,2417.4,2417.1,1.73958]
[1728095478953,0.28956,2417.4,2417.1,0.41]
[1728095478954,1.04,2417.4,2417.1,0.41]
[1728095479153,0.28957,2417.2,2417.1,0.41]
[1728095479657,1.11257,2417.2,2417.1,0.41]
[1728095482260,0.823,2417.2,2417.1,0.41]
[1728095485453,0.823,2417.2,2417.1,0.69958]
[1728095490458,1.04,2417.5,2417.1,0.41]
[1728095490658,0.69905,2417.4,2417.2,0.28957]
[1728095490855,0.28955,2417.4,2417.2,0.28957]
[1728095491055,0.28953,2417.6,2417.4,0.28954]
[1728095491254,1.50142,2417.7,2417.5,0.69374]
[1728095491455,0.28952,2417.6,2417.5,0.8148]
[1728095491956,1.50142,2417.7,2417.5,0.8148]
[1728095492371,1.2119,2417.7,2417.5,0.8148]
[1728095492564,0.28952,2417.6,2417.5,0.8148]
[1728095493759,1.2119,2417.7,2417.3,1.432]
[1728095494159,0.28954,2417.5,2417.3,1.72156]
[1728095494565,0.4146,2417.4,2417.3,1.72156]
[1728095495559,0.4146,2417.4,2417.3,1.432]
[1728095495757,0.4146,2417.4,2417.3,1.72156]
[1728095496965,0.28953,2417.6,2417.4,0.28954]
[1728095497159,0.69113,2417.6,2417.4,0.28954]
[1728095497358,0.69113,2417.6,2417.5,0.3864]
[1728095502468,0.28954,2417.5,2417.3,1.72155]
[1728095502672,0.28954,2417.5,2417.3,2.11095]
[1728095502873,0.69113,2417.6,2417.4,0.28955]
[1728095505472,0.28954,2417.5,2417.3,2.11095]
[1728095506374,0.69113,2417.6,2417.4,0.28955]
[1728095506770,0.28954,2417.5,2417.3,2.11095]
[1728095507576,0.69113,2417.6,2417.4,0.28955]
[1728095510373,0.69113,2417.6,2417.3,3.19669103]
[1728095510374,0.28954,2417.5,2417.3,3.19669103]
[1728095510575,0.4016,2417.6,2417.3,2.90714103]
[1728095510766,0.69113,2417.6,2417.4,0.28955]
[1728095512172,0.69113,2417.6,2417.4,1.37529103]
[1728095514579,0.69113,2417.6,2417.4,0.28955]
[1728095516874,0.28954,2417.5,2417.4,0.28955]
[1728095517076,0.69113,2417.6,2417.4,0.28955]
[1728095520176,0.28954,2417.5,2417.3,1.07095]
[1728095520376,0.28954,2417.5,2417.4,0.52687373]
[1728095520583,0.69113,2417.6,2417.4,0.81642373]
[1728095520784,0.69113,2417.6,2417.4,0.28955]
[1728095521482,0.69113,2417.6,2417.4,1.37529103]
[1728095522287,0.69113,2417.6,2417.5,1.08574103]
[1728095522489,0.69113,2417.6,2417.4,1.37529103]
[1728095522689,0.69113,2417.6,2417.5,1.08574103]
[1728095523187,0.69113,2417.6,2417.4,1.37529103]
[1728095523884,0.28954,2417.5,2417.4,1.08574103]
[1728095524088,0.28954,2417.5,2417.4,1.61268577]
[1728095524293,0.28954,2417.5,2417.4,3.18779805]
[1728095524590,0.28954,2417.5,2417.4,1.61268577]
[1728095525188,0.28954,2417.5,2417.4,3.18790299]
[1728095525392,0.28954,2417.5,2417.4,1.08574103]
[1728095526490,0.28954,2417.5,2417.4,1.61276672]
[1728095526693,0.28954,2417.5,2417.4,1.08574103]
[1728095526995,0.28954,2417.5,2417.4,1.6127804]
[1728095527394,0.69113,2417.6,2417.4,1.9023304]
[1728095527594,0.28954,2417.5,2417.4,1.08574103]
[1728095527793,0.28954,2417.5,2417.4,3.47781972]
[1728095528202,0.28954,2417.5,2417.4,3.47792118]
[1728095529196,0.28954,2417.5,2417.4,3.47794718]
[1728095529401,0.28954,2417.5,2417.4,0.81661869]
[1728095529698,0.4016,2417.6,2417.4,0.52715147]
[1728095529904,0.28954,2417.5,2417.3,1.07096]
[1728095530102,0.4016,2417.6,2417.3,0.7814]
[1728095530299,0.4016,2417.6,2417.1,1.08574103]
[1728095530300,1.4416,2417.6,2417.1,1.08574103]
[1728095530600,1.4416,2417.6,2417.1,4.99442103]
[1728095530601,0.28957,2417.3,2417.1,4.99442103]
[1728095530800,0.28952,2417.6,2417.3,0.28955]
[1728095531100,0.28952,2417.6,2417.1,3.6191]
[1728095531101,0.4087,2417.6,2417.1,3.6191]
[1728095531307,0.28954,2417.5,2417.3,0.28956]
[1728095531705,0.28954,2417.5,2417.4,0.4113]
[1728095559614,0.28953,2417.6,2417.4,8.04351445]
[1728095559817,0.28952,2417.7,2417.5,3.18838132]
[1728095560007,0.28952,2417.7,2417.6,0.3884]
[1728095560912,0.28952,2417.7,2417.6,1.47356723]
[1728095561113,0.28952,2417.7,2417.6,0.3884]
[1728095562719,0.28952,2417.6,2417.5,1.08516723]
[1728095562907,6.3947,2417.6,2417.2,1.08516723]
[1728095563110,0.28957,2417.2,2417.1,1.08516723]
[1728095563412,0.28957,2417.2,2416.8,2.45263837]
[1728095563413,1.76391,2417.3,2416.9,1.08516723]
[1728095563613,5.0549,2417.1,2416.9,1.08516723]
[1728095563916,5.0549,2417.1,2416.8,1.08516723]
[1728095563917,0.28961,2416.9,2416.8,1.08516723]
[1728095564121,1.32961,2416.9,2416.8,1.08516723]
[1728095564316,11.1776,2416.9,2416.5,1.08516723]